Cogmind - Beta 13 @@@ ROGUE MODE // 2024.03.09 @ 13:21:33 Player: youngster Result: Destroyed by Y-45 Defender with Heavy Assault Rifle Performance ------------- Evolutions (0) 0 Regions Visited (4) 800 Robots Destroyed (39) 195 Value Destroyed (808) 808 Prototype IDs (16) 320 Alien Tech Used (0) 0 Bonus (0) 0 TOTAL SCORE: 2123 Bonus ------- None Cogmind --------- Core Integrity 0/250 Matter 300/300 Energy 265/265 System Corruption 2% Temperature Cool (9) Movement Treading (160) Location -8/Recycling Parts ------- > --- POWER (1) -------- Improved Ion Engine > --- PROPULSION (2) --- Light Treads Light Treads > --- UTILITY (2) ------ Large Storage Unit Makeshift Light Armor Plating > --- WEAPON (2) ------- Heavy Assault Rifle (fused) Flail > --- INVENTORY (15) --- Light Treads Armored Treads Subdweller Monowheel Scrap Engine Large Matter Pod (150) Makeshift Light Armor Plating Power Bank Riot Gun Subdweller Laser Heavy Assault Rifle Battle Rifle Minigun Mini Grenade Launcher Mini Grenade Launcher Peak State ------------ > --- POWER ------------ Improved Ion Engine > --- PROPULSION ------- Light Treads Light Treads > --- UTILITY ---------- Large Storage Unit Makeshift Light Armor Plating > --- WEAPON ----------- Heavy Assault Rifle Flail > --- INVENTORY -------- Light Treads Armored Treads Subdweller Monowheel Scrap Engine Large Matter Pod Makeshift Light Armor Plating Power Bank Riot Gun Subdweller Laser Light Assault Rifle Battle Rifle Minigun Mini Grenade Launcher Mini Grenade Launcher [Rating: 18] Favorites ----------- Power Light Nuclear Core Engine Improved Ion Engine Power Core Light Nuclear Core Propulsion Light Treads Treads Light Treads Wheel Subdweller Monowheel Utility Large Storage Unit Device Seismic Detector Storage Large Storage Unit Protection Makeshift Light Armor Plating Weapon Assault Rifle Energy Gun Riot Gun Energy Cannon Particle Cannon Ballistic Gun Assault Rifle Launcher Mini Grenade Launcher Impact Weapon Hammer Build | -11 -10 -10 -10 -8 ------- Run | Yrd Mat Min Sub Rec Slots Evolved . | . . . . . Power . | . . . . . Propulsion . | . . . . . Utility . | . . . . . Weapon . | . . . . . Parts Attached 57 | 7 12 9 21 8 Power 5 | 1 1 . 2 1 Engine 4 | 1 . . 2 1 Core 1 | . 1 . . . Reactor . | . . . . . Propulsion 11 | 2 3 . 5 1 Treads 10 | 2 3 . 4 1 Leg . | . . . . . Wheel 1 | . . . 1 . Hover . | . . . . . Flight . | . . . . . Utility 12 | 2 3 . 3 4 Device 2 | 1 . . 1 . Storage 5 | 1 3 . . 1 Processor . | . . . . . Hackware . | . . . . . Protection 5 | . . . 2 3 Artifact . | . . . . . Weapon 29 | 2 5 9 11 2 Energy Gun 1 | . . . 1 . Energy Cannon 1 | . 1 . . . Ballistic Gun 15 | 2 3 5 4 1 Ballistic Cannon . | . . . . . Launcher 8 | . 1 4 3 . Special Weapon . | . . . . . Impact Weapon 4 | . . . 3 1 Slashing Weapon . | . . . . . Piercing Weapon . | . . . . . Special Melee Weapon . | . . . . . Unidentified Prototypes . | . . . . . Parts Lost 7 | . 1 . 6 . Power 2 | . . . 2 . Propulsion 2 | . . . 2 . Utility 2 | . 1 . 1 . Weapon 1 | . . . 1 . Highest Loss Streak 3 | . 1 . 3 . To Critical Strikes 1 | . . . 1 . Average Slot Usage (%) 95 | . 87 100 98 100 Engine 5 | . 1 . 8 14 Core 6 | . 6 14 3 . Treads 26 | . 25 28 22 28 Device 3 | . 7 . 4 . Storage 18 | . 17 28 14 14 Protection 5 | . . . 8 13 Energy Cannon 5 | . 2 14 7 . Ballistic Gun 17 | . 25 12 14 14 Impact Weapon 4 | . . . 3 14 Naked Turns . | . . . . . Heaviest Build 36 | 14 34 35 35 36 Greatest Support 40 | 40 40 40 40 40 Greatest Overweight (x) 1 | . . . 1 . Average Overweight (x) . | . . . . . Largest Inventory Capacity 15 | 8 15 15 15 15 Average Capacity 12 | 7 9 15 15 15 Most Carried 15 | 2 10 15 15 15 Average Carried 11 | 1 6 13 13 14 Final Capacity 15 | 8 15 15 15 15 Final Carried 15 | 2 10 15 15 15 Class Distribution -------------------- 96% | Mutant 3% | Scavenger-Mutant Dominant Class ---------------- Mutant | -10/Materials Mutant | -10/Mines Mutant | -10/Subcaves Mutant | -8/Recycling Resources | -11 -10 -10 -10 -8 ----------- Run | Yrd Mat Min Sub Rec Matter Collected 1517 | 163 471 344 253 286 Remotely . | . . . . . Salvage Created 1281 | 39 538 204 194 306 Parts 76 | 6 35 8 15 12 Haulers Intercepted . | . . . . . Recyclers Shooed 5 | 1 3 1 . . Parts Field Recycled . | . . . . . Retrieved Matter . | . . . . . Parts Self-Destructed 4 | . . . 4 . Prevented . | . . . . . Kills | -11 -10 -10 -10 -8 ------- Run | Yrd Mat Min Sub Rec Combat Hostiles Destroyed 27 | . 12 5 8 2 Melee 4 | . 2 . . 2 Guns 14 | . 10 1 3 . AOE 9 | . . 4 5 . Classes Destroyed 10 | 1 5 1 2 1 Builder 1 | . 1 . . . Tunneler 3 | 2 . 1 . . Recycler 8 | . 3 2 . 3 Turret 2 | . . . 2 . Watcher 1 | . 1 . . . Swarmer 10 | . 6 . 4 . Grunt 8 | . 6 2 . . Sentry 2 | . . . . 2 Subdweller 4 | . . . 4 . Assembled 3 | . . 3 . . Best Kill Streak 6 | 2 3 5 6 2 Combat Bots Only 4 | . 3 3 4 1 Max Kills in Single Turn 3 | 1 1 1 3 1 Gunslinging . | . . . . . Exploded 3 | . . 1 3 . Melee 1 | . 1 . . 1 Uniques/NPCs Destroyed . | . . . . . Combat | -11 -10 -10 -10 -8 -------- Run | Yrd Mat Min Sub Rec Hostile Shots Fired 187 | . 72 21 72 22 Missed 53 | . 23 8 17 5 Damage Taken 1833 | . 474 197 907 255 Core 253 | . 106 28 69 50 Absorbed by Shields . | . . . . . Core Remaining (%) 100 | 100 . . . . Volleys Fired 106 | 4 54 14 34 . Largest 2 | 2 2 2 2 . Hottest 91 | 40 88 88 91 . Shots Fired 205 | 8 110 21 66 . Gun 156 | 8 105 7 36 . Cannon 29 | . 5 7 17 . Launcher 20 | . . 7 13 . Special . | . . . . . Kinetic 156 | 8 105 7 36 . Thermal 29 | . 5 7 17 . Explosive 20 | . . 7 13 . Electromagnetic . | . . . . . Robot Hit Streak 28 | 3 9 4 28 . Robot Miss Streak 4 | 1 4 2 2 . Penetration Max . | . . . . . Secondary Targets . | . . . . . Shots Hit Robots 143 | 5 71 9 49 9 Core Hits 62 | 2 25 12 20 3 Critical Kills . | . . . . . Critical Parts Destroyed . | . . . . . Critical Strikes . | . . . . . Melee Attacks 17 | . . . 3 14 Impact 17 | . . . 3 14 Slashing . | . . . . . Piercing . | . . . . . Sneak Attacks 5 | . . . . 5 Combat Hostiles . | . . . . . Follow-up Attacks . | . . . . . Damage Inflicted 2992 | 72 857 461 1231 371 Guns 1295 | 72 804 46 373 . Cannons 329 | . 41 63 225 . Explosions 978 | . . 345 633 . Melee 371 | . . . . 371 Ramming 19 | . 12 7 . . Kinetic 1295 | 72 804 46 373 . Thermal 329 | . 41 63 225 . Explosive 978 | . . 345 633 . Electromagnetic . | . . . . . Impact 371 | . . . . 371 Slashing . | . . . . . Piercing . | . . . . . Highest Corruption 2 | . 2 2 2 2 Average Corruption 1 | . 1 2 2 2 Corruption Purged . | . . . . . Corruption Blocked . | . . . . . Effects 39 | . 10 10 7 12 Message Errors 10 | . 3 4 1 2 Matter Fused 13 | . 2 4 1 6 Heat Flow Errors 2 | . 1 . . 1 Energy Discharges 4 | . 1 . 2 1 Parts Fused 2 | . . . 1 1 Data Loss (minor) 4 | . . 1 2 1 Data Loss (major) 1 | . 1 . . . Misfires 2 | . 2 . . . Alerts 1 | . . 1 . . Overload Shots . | . . . . . Overflow Damage 181 | . . 9 72 100 Projectiles . | . . . . . Explosions 81 | . . 9 72 . Melee 100 | . . . . 100 Knockbacks 1 | . . . . 1 Impact 1 | . . . . 1 Kinetic . | . . . . . Secondary . | . . . . . Self-Inflicted Damage 50 | . . 31 19 . Shots 2 | . . 1 1 . Rammed 8 | . 6 2 . . Targets Rammed 10 | . 8 2 . . Kicked . | . . . . . Crushed 2 | . 2 . . . Highest Temperature 217 | . 172 132 1 217 Average Temperature 56 | . 49 45 1 99 Received Heat Transfer 516 | . 147 90 180 99 Siege Activations . | . . . . . Robots Corrupted . | . . . . . Combat Hostiles . | . . . . . Parts Fried 1 | . . . . 1 Impact Corruptions 4 | . . . . 4 Robots Melted . | . . . . . Combat Hostiles . | . . . . . Parts Melted . | . . . . . Heat Transferred 592 | . 74 111 407 . Parts Sabotaged . | . . . . . Parts Stolen . | . . . . . Parts Stripped . | . . . . . Power Chain Reactions . | . . . . . Alert | -11 -10 -10 -10 -8 ------- Run | Yrd Mat Min Sub Rec Peak Influence 331 | 10 207 120 . 331 Initial 201 | . 6 6 . 201 Average 91 | 2 76 30 . 175 Maximum Alert Level 1 | . 1 . . 1 Low Security (%) 86 | 100 99 100 . 57 Level 1 13 | . . . . 42 Level 2 . | . . . . . Level 3 . | . . . . . Level 4 . | . . . . . Level 5 . | . . . . . High Security . | . . . . . Max Security . | . . . . . Squads Dispatched 2 | . 2 . . . Investigation 1 | . 1 . . . Extermination . | . . . . . Reinforcement 1 | . 1 . . . Assault . | . . . . . Garrison . | . . . . . Intercept . | . . . . . Searches Triggered . | . . . . . Construction Impeded . | . . . . . Haulers Reinforced . | . . . . . Active Scanning Responses . | . . . . . Cargo Convoy Interrupts . | . . . . . Stealth | -11 -10 -10 -10 -8 --------- Run | Yrd Mat Min Sub Rec Distress Signals . | . . . . . Communications Jammed . | . . . . . Distress Signals . | . . . . . Times Spotted 53 | . 27 6 17 3 Peak Tracking Total 5 | . 5 3 4 1 Tactical Retreats 4 | . 1 1 2 . Traps | -11 -10 -10 -10 -8 ------- Run | Yrd Mat Min Sub Rec Traps Triggered 3 | . 3 . . . Indirectly . | . . . . . Trap Hack Attempts . | . . . . . Triggered . | . . . . . Disarmed . | . . . . . Reprogrammed . | . . . . . Reused . | . . . . . Traps Extracted . | . . . . . Installed . | . . . . . Triggered . | . . . . . Machines | -11 -10 -10 -10 -8 ---------- Run | Yrd Mat Min Sub Rec Machines Disabled 6 | . . 1 5 . Max in Single Turn 2 | . . 1 2 . Machines Repaired . | . . . . . Machines Dismantled . | . . . . . Machines Sabotaged . | . . . . . Overloaded Fab Kills . | . . . . . Hacking | -11 -10 -10 -10 -8 --------- Run | Yrd Mat Min Sub Rec Machines Accessed 21 | . 6 . 2 13 Terminals 11 | . 5 . . 6 Fabricators . | . . . . . Repair Stations . | . . . . . Recycling Units 8 | . 1 . . 7 Scanalyzers . | . . . . . Garrison Access . | . . . . . Total Hacks 48 | . 19 . 2 27 Successful 29 | . 10 . 2 17 Failed 19 | . 9 . . 10 Catastrophic 3 | . 1 . . 2 Database Lockouts . | . . . . . Manual 29 | . 15 . . 14 Terminals 37 | . 17 . . 20 Fabricators . | . . . . . Repair Stations . | . . . . . Recycling Units 9 | . 2 . . 7 Scanalyzers . | . . . . . Garrison Access . | . . . . . Terminal Hacks 17 | . 7 . 2 8 Record 2 | . 1 . 1 . Part Schematic 5 | . 1 . . 4 Robot Schematic 1 | . 1 . . . Robot Analysis 2 | . 2 . . . Prototype ID Bank 3 | . 1 . . 2 Fabricator Index 1 | . . . . 1 Unreport Threat 1 | . . . . 1 Hauler Manifests 1 | . 1 . . . Derelict Proto ID Bank 1 | . . . 1 . Fabricator Hacks . | . . . . . Repair Station Hacks . | . . . . . Recycling Unit Hacks . | . . . . . Scanalyzer . | . . . . . Garrison Access Hacks . | . . . . . Unauthorized Hacks 12 | . 3 . . 9 Terminals 4 | . 2 . . 2 Track 2 | . . . . 2 Botnet 2 | . 2 . . . Fabricators . | . . . . . Repair Stations . | . . . . . Recycling Units 8 | . 1 . . 7 Tunnel 8 | . 1 . . 7 Scanalyzers . | . . . . . Garrison Access . | . . . . . Data Cores Recovered . | . . . . . Used . | . . . . . Hacking Detections 11 | . 6 . . 5 Full Trace Events 1 | . . . . 1 Feedback Events . | . . . . . Feedback Blocked . | . . . . . Robot Schematics Acquired 1 | . 1 . . . Robots Built . | . . . . . Authchips . | . . . . . Time . | . . . . . Total Robot Build Rating . | . . . . . Part Schematics Acquired 5 | . 1 . . 4 Parts Built . | . . . . . Authchips . | . . . . . Time . | . . . . . Total Part Build Rating . | . . . . . Parts Repaired . | . . . . . Time . | . . . . . Parts Recycled . | . . . . . Recycled Matter . | . . . . . Retrieved Matter . | . . . . . Retrieved Components . | . . . . . Parts Scanalyzed . | . . . . . Part Schematics Acquired . | . . . . . Parts Damaged . | . . . . . Bothacking | -11 -10 -10 -10 -8 ------------ Run | Yrd Mat Min Sub Rec Used RIF Installer . | . . . . . Robots Hacked . | . . . . . Non-combat . | . . . . . Combat . | . . . . . Robot Hacks Applied . | . . . . . Relay Couplers Released . | . . . . . Fabnet Peak Effective % . | . . . . . Robots Rewired . | . . . . . Allies Hacked . | . . . . . Hacks Repelled . | . . . . . Allies | -11 -10 -10 -10 -8 -------- Run | Yrd Mat Min Sub Rec Total Allies . | . . . . . Largest Group . | . . . . . Highest-Rated Group . | . . . . . Highest-Rated Ally . | . . . . . Total Orders . | . . . . . Ally Attacks . | . . . . . Total Damage . | . . . . . Kills . | . . . . . Allies Corrupted . | . . . . . Allies Melted . | . . . . . Intel | -11 -10 -10 -10 -8 ------- Run | Yrd Mat Min Sub Rec Robot Analysis Total 2 | . 2 . . . Derelict Logs Recovered 2 | . . 1 1 . Drone Launches . | . . . . . Drone Recoveries . | . . . . . Exploration | -11 -10 -10 -10 -8 ------------- Run | Yrd Mat Min Sub Rec Turns Passed 4153 | 94 1344 960 719 1036 Spaces Moved 2306 | 47 689 564 402 604 Core 3 | 3 . . . . Treads 2116 | 44 689 564 215 604 Legs . | . . . . . Wheels 187 | . . . 187 . Hover . | . . . . . Flight . | . . . . . Fastest Speed 50 | 50 160 160 120 160 Average Speed 156 | 152 160 160 141 160 Slowest Speed 160 | 160 160 160 160 160 Overloaded Moves . | . . . . . Propulsion Burnouts . | . . . . . Robots Hopped . | . . . . . Cave-ins Triggered . | . . . . . Exploration Rate (%) 58 | 5 93 67 35 90 Regions Visited 4 Branch Regions 3 Pre-discovered Areas 9 | . 1 1 . 7 Known Exits Taken . | . . . . . Unknown Exits Taken 4 | 1 1 1 1 . Scrap Searched 4 | . . 1 3 . Spaces Dug 33 | . . 23 10 . Terrain Destroyed 127 | . . 65 62 . Melee . | . . . . . Projectile 1 | . . 1 . . AOE 126 | . . 64 62 . Terrain Rammed . | . . . . . Walls Destroyed . | . . . . . Machines Disabled . | . . . . . Actions | -11 -10 -10 -10 -8 --------- Run | Yrd Mat Min Sub Rec Total 2620 | 59 825 596 480 660 Wait 63 | . 43 2 9 9 Move 2302 | 46 688 563 401 604 Hop . | . . . . . Pick Up 32 | 2 11 5 6 8 Fast Attach 22 | 7 5 . 4 6 Attach 6 | . 1 . 5 . Detach 3 | . . . 2 1 Swap 29 | . 6 9 12 2 Drop 30 | . 9 1 4 16 Fire 106 | 4 54 14 34 . Melee 17 | . . . 3 14 Ram . | . . . . . Kick . | . . . . . Crush 10 | . 8 2 . . Escape Stasis . | . . . . . Rewire . | . . . . . Trap . | . . . . . Miscellaneous . | . . . . . Route ------- -11/Scrapyard -10/Materials (discovered 5 exits: [*Mat x3] / [*Min x2]) -10/Mines (discovered 3 exits: [*Mat] / [*Exi] / *Sub) -10/Subcaves -8/Recycling (discovered 1 exit: [*Fac]) History --------- Turn | Location | Event 2 | -11/Scrapyard | Met Revision 17 56 | -11/Scrapyard | Discovered new exit (range 12) 95 | -11/Scrapyard | Entered Materials 275 | -10/Materials | Discovered new exit (range 11) 317 | -10/Materials | Build established: Mutant 352 | -10/Materials | Discovered new exit (range 16) 544 | -10/Materials | Discovered new exit (range 14) 646 | -10/Materials | Discovered new exit (range 15) 1337 | -10/Materials | Discovered new exit (range 5) 1439 | -10/Materials | Entered Mines 1470 | -10/Mines | Learned location of 1 exit from Materials 1567 | -10/Mines | Discovered new exit (range 10) 1568 | -10/Mines | Learned location of Storage (-8) 1645 | -10/Mines | Core integrity fell below 50% 1802 | -10/Mines | Joined a pair of Derelicts in attacking an 0b10 outpost 1952 | -10/Mines | Assembled infested the area 1957 | -10/Mines | Assisted by a Guerilla fighting off Assembled 2229 | -10/Mines | Deemed a non-threat by the Exiles lab entrance 2229 | -10/Mines | Discovered new exit (range 5) 2383 | -10/Mines | Discovered new exit (range 10) 2399 | -10/Mines | Entered Subcaves 2446 | -10/Subcaves | Visited Clippyterm 2641 | -10/Subcaves | Lost 3 parts (1p2n) 2894 | -10/Subcaves | Learned Materials stockpile data 2927 | -10/Subcaves | Discovered new exit (range 11) 2928 | -10/Subcaves | Core integrity fell below 20% 3038 | -10/Subcaves | Visited 4L-MR0's lab 3058 | -10/Subcaves | Found Power Bank 3118 | -10/Subcaves | Entered Recycling 3123 | -8/Recycling | Found Scrap Engine 3347 | -8/Recycling | Discovered new exit (range 8) 4154 | -8/Recycling | Destroyed by Y-45 Defender with Heavy Assault Rifle Last Messages --------------- 04061_ R-06 Scavenger collects Hvy. Assault Rifle. 04063_ Sneak attack on R-06 Scavenger. 04063_ Destroyed Com. Wheel. 04063_ R-06 Scavenger system corrupted by crushing effect. 04063_ R-06 Scavenger destroyed. 04069_ Dropped Lgt. Assault Rifle. 04069_ Acquired Hvy. Assault Rifle. 04072_ R-06 Scavenger collects Imp. Ion Engine. 04074_ R-06 Scavenger collects Heat Sink. 04076_ Connecting with Recycling Unit... >>Force(Tunnel) DISCOVERED[-7/Factory] 04076_ R-06 Scavenger collects Lgt. Assault Rifle. 04079_ R-06 Scavenger collects Heat Sink. 04082_ R-06 Scavenger collects Lgt. Armor Plating. 04148_ Y-45 Defender springs to life. Map ----- +----------------------------------------------------+ | # """ # #?########## #???????????????# | | # """ # ##??????????? #???????????????# | | # # #???????????? #???????????????# | | ##"Y"### #???????????????????????????????# | | ##"""#?# #???????????????????????????????# | | ######?# #???????????????????????????????# | | #?######+## #???????????????????????????????# | | #?# # #???????????????????????????????# | | ### # #???????????????????????????????# | | ## # #???????????????????????????????# | | ### # #???????????????????????????+???# | | #?# # #??????????????????????????? ???# | | #?# + #??????????????????????????# #??# | | #?# # #??????????????????????# ## ### | | #?# # #???????????????? | | #?# + #???????????????????????### ####+ | | #?# # #??????????????????????????# ## | | #?# # #??????????????????????????# ## """ | | #?######### #??????????##########+###??# + """ | | #?????????# #????#####?# #??# ## """ | | #????????## ##???#"""#?# ! #### ## | | ########## #####"Y"### / + ## | | r # ! ] #### ## | | T %+ ] ! #??# ## | | # *#??# #####+ | | ########## #########@# #??# #???# | | #?##########+#######??#Y # ! /= #??# ##### | | #?# #??## # #??# | | #?# #???# # #?##+#####+ | | #?# ##### # ! #?# | | #?# + # % #?# [ | | #?# ####################?# != | | ##?# #????????????????????# ! | | ???# #????????????????????# ] | | ???# #????????????????????# | | ??# #????????????????????# | | ??################ ##????????????????????######### | | ??????????????????##?????????????????????????????? | | ?????????????????????????????????????????????????? | | | | | | | | | | | | | | | | | | | | | | | +----------------------------------------------------+ Best States ------------- Heat Dissipation 25 Energy Generation 15 Energy Capacity 365 Matter Stores 450 Matter Capacity 450 Sight Range 16 Terrain Scan Range 16 Terrain Scan Density 10 Armor Coverage 150 Evasion (%) 40 Recoil Reduction 2 Item Schematics ----------------- Huge Storage Unit | -10/Materials | Hacked Lrn. Tractor Beam | -8/Recycling | Hacked Arm. Wheel | -8/Recycling | Hacked Seismic Detector | -8/Recycling | Hacked Drone Bay | -8/Recycling | Hacked Robot Schematics ------------------ M-13 Machinist | -10/Materials | Hacked Fabricated ------------ Nothing Alien Tech Used ----------------- None Achievements -------------- None Challenges ------------ None Game ------ Seed GyrokineticSurveybotAnalyzer Manual? 0 Play Time 00:32:45 Cumulative 430.2 hours Start 2024.03.04 @ 13:25:41 End 2024.03.09 @ 13:21:33 Sessions 12 Manual Loads 0 Difficulty Rogue Special Mode None Game No. 196 Rogue 196 Adventurer 0 Explorer 0 Win Type - Total 10 Types 7/0/1/1/0/0/0/1/0 Lore% 85 Gallery% 92 Achievement% 71 Wizard Run 0 Options --------- Layout 2 ASCII 0 Keyboard 1 Movement Vi Keybinds 0 Fullscreen 2 Font 18/Cog Map View 50x49 Zoom Use 1% Tactical HUD 1 Map Filters NONE Filters NONE Steam 0 RUN: c5e90e82-b201-4cd7-88db-31737277cec0